fUST/lending_fUST_20241126
["ID","MTS","AMOUNT","RATE_DAILY","PERIOD"]
[343454738,1732628829181,-312.79067075,0.000229,2]
[343454739,1732628829206,-724.46221684,0.00023,5]
[343454740,1732628829228,-394.160703,0.00025545,2]
[343454741,1732628829249,-300.0,0.00026078,2]
[343454742,1732628829272,-6912.64710678,0.00026078,2]
[343454744,1732628851136,-183.4748385,0.00025757,2]
[343454745,1732628851160,-5622.46287754,0.00026078,2]
[343454774,1732629032290,-302.84859387,0.00025948,2]
[343454776,1732629032300,-1298.57919578,0.00025979,2]
[343454778,1732629032310,-361.58557816,0.00025979,2]
[343454780,1732629032320,-151.89163046,0.00026026,2]
[343454782,1732629032329,-615.26416634,0.00026075,2]
[343454784,1732629032339,-300.0,0.00026075,2]
[343454786,1732629032348,-300.0,0.00026075,2]
[343454788,1732629032357,-44733.0,0.00026075,2]
[343454790,1732629032367,-24900.0,0.00026079,2]
[343454792,1732629032379,-302.84859387,0.00026207,2]
[343454794,1732629032389,-300.0,0.00026428,2]
[343454797,1732629032398,-454.27289081,0.00026467,4]
[343454799,1732629032410,-1298.57919576,0.0002649,2]
[343454801,1732629032420,-195.45569,0.00026575,2]
[343454804,1732629032432,-454.27289081,0.00026726,4]
[343454806,1732629032442,-454.27289081,0.00026986,4]
[343454808,1732629032451,-1298.57919576,0.00027001,2]
[343454810,1732629032462,-3000.0,0.00027163,2]
[343454812,1732629032472,-454.91864107,0.00027245,4]
[343454814,1732629032484,-909.56,0.0002749,10]
[343454816,1732629032493,-336447.39,0.000275,5]
[343454818,1732629032504,-1298.57919576,0.00027512,2]
[343454820,1732629032513,-157.742,0.00027803,17]
[343454822,1732629032522,-4013.0,0.00028,2]
[343454824,1732629032531,-1298.57919576,0.00028023,2]
[343454826,1732629032541,-420.0,0.00028217,2]
[343454828,1732629032551,-1616.2944,0.00028379,2]
[343454830,1732629032560,-1298.57919576,0.00028534,2]
[343454832,1732629032569,-420.0,0.00028683,2]
[343454834,1732629032578,-160.0653048,0.000287,2]
[343454836,1732629032587,-1298.57919576,0.00029045,2]
[343454838,1732629032596,-150.0,0.00029075,2]
[343454840,1732629032605,-531.0,0.00029075,2]
[343454842,1732629032614,-2378.0,0.00029075,2]
[343454844,1732629032623,-1103.0,0.00029075,2]
[343454846,1732629032634,-162.27,0.000291,31]
[343454848,1732629032653,-162.27,0.000291,31]
[343454850,1732629032670,-162.27,0.000291,31]
[343454852,1732629032680,-162.27,0.000291,31]
[343454854,1732629032689,-162.27,0.000291,31]
[343454856,1732629032699,-162.27,0.000291,31]
[343454858,1732629032708,-162.27,0.000291,31]
[343454860,1732629032717,-162.27,0.000291,31]
[343454862,1732629032726,-162.27,0.000291,31]
[343454864,1732629032735,-162.27,0.000291,31]
[343454866,1732629032744,-162.27,0.000291,31]
[343454868,1732629032753,-162.27,0.000291,31]
[343454870,1732629032762,-500.0,0.00029315,2]
[343454872,1732629032772,-500.0,0.00029315,2]
[343454874,1732629032784,-500.0,0.00029315,2]
[343454876,1732629032794,-500.0,0.00029315,2]
[343454878,1732629032803,-500.0,0.00029315,2]
[343454880,1732629032812,-201.66441231,0.00029315,2]
[343454882,1732629032822,-500.0,0.00029315,2]
[343454883,1732629032831,-230.84915327,0.00029315,2]
[343454885,1732629032841,-500.0,0.00029315,2]
[343454887,1732629032851,-500.0,0.00029315,2]
[343454890,1732629032860,-500.0,0.00029315,2]
[343454892,1732629032870,-500.0,0.00029315,2]
[343454894,1732629032881,-500.0,0.00029315,2]
[343454896,1732629032890,-500.0,0.00029315,2]
[343454898,1732629032900,-500.0,0.00029315,2]
[343454900,1732629032909,-5582.28095487,0.000294,7]
[343454902,1732629032919,-8943.77305956,0.00029477,2]
[343454904,1732629032928,-500.0,0.00029552,2]
[343454906,1732629032938,-500.0,0.00029552,2]
[343454908,1732629032948,-206.90796274,0.00029553,2]
[343454910,1732629032957,-460.64095719,0.00029553,2]
[343454912,1732629032967,-500.0,0.00029553,2]
[343454914,1732629032976,-500.0,0.00029553,2]
[343454916,1732629032987,-345.72292403,0.00029553,2]
[343454918,1732629032997,-500.0,0.00029553,2]
[343454920,1732629033006,-500.0,0.00029553,2]
[343454922,1732629033016,-500.0,0.00029553,2]
[343454924,1732629033026,-500.0,0.00029553,2]
[343454926,1732629033046,-500.0,0.00029553,2]
[343454928,1732629033060,-500.0,0.00029553,2]
[343454930,1732629033070,-500.0,0.00029553,2]
[343454932,1732629033079,-500.0,0.00029553,2]
[343454934,1732629033090,-500.0,0.00029553,2]
[343454936,1732629033102,-575.24638792,0.00029553,2]
[343454938,1732629033112,-500.0,0.00029553,2]
[343454940,1732629033123,-500.0,0.00029553,2]
[343454942,1732629033135,-500.0,0.00029553,2]
[343454944,1732629033145,-500.0,0.00029553,2]
[343454946,1732629033154,-500.0,0.00029553,2]
[343454948,1732629033164,-500.0,0.00029553,2]
[343454950,1732629033174,-500.0,0.00029553,2]
[343454952,1732629033184,-500.0,0.00029553,2]
[343454954,1732629033195,-500.0,0.00029553,2]
[343454956,1732629033205,-500.0,0.00029553,2]
[343454958,1732629033216,-500.0,0.00029553,2]
[343454960,1732629033226,-500.0,0.00029553,2]
[343454962,1732629033237,-500.0,0.00029553,2]
[343454964,1732629033247,-500.0,0.00029553,2]
[343454966,1732629033257,-500.0,0.00029553,2]
[343454968,1732629033267,-500.0,0.00029553,2]
[343454970,1732629033278,-500.0,0.00029553,2]
[343454973,1732629033291,-500.0,0.00029553,2]
[343454974,1732629033301,-500.0,0.00029553,2]
[343454977,1732629033311,-546.66452119,0.00029553,2]
[343454979,1732629033321,-500.0,0.00029553,2]
[343454981,1732629033331,-500.0,0.00029553,2]
[343454983,1732629033341,-500.0,0.00029553,2]
[343454985,1732629033352,-500.0,0.00029553,2]
[343454987,1732629033362,-500.0,0.00029553,2]
[343454989,1732629033372,-500.0,0.00029553,2]
[343454991,1732629033382,-500.0,0.00029553,2]
[343454993,1732629033392,-500.0,0.00029553,2]
[343454995,1732629033401,-500.0,0.00029553,2]
[343454997,1732629033410,-500.0,0.00029553,2]
[343454999,1732629033420,-500.0,0.00029553,2]
[343455001,1732629033429,-500.0,0.00029553,2]
[343455003,1732629033439,-500.0,0.00029553,2]
[343455005,1732629033450,-500.0,0.00029553,2]
[343455007,1732629033460,-500.0,0.00029553,2]
[343455009,1732629033469,-500.0,0.00029553,2]
[343455011,1732629033479,-187.59998454,0.00029553,2]
[343455013,1732629033489,-500.0,0.00029553,2]
[343455015,1732629033499,-500.0,0.00029553,2]
[343455017,1732629033509,-500.0,0.00029553,2]
[343455019,1732629033519,-500.0,0.00029553,2]
[343455022,1732629033531,-500.0,0.00029553,2]
[343455024,1732629033541,-500.0,0.00029553,2]
[343455026,1732629033551,-500.0,0.00029553,2]
[343455028,1732629033560,-500.0,0.00029553,2]
[343455030,1732629033572,-500.0,0.00029553,2]
[343455032,1732629033582,-500.0,0.00029553,2]
[343455034,1732629033592,-500.0,0.00029553,2]
[343455036,1732629033603,-500.0,0.00029553,2]
[343455038,1732629033612,-410.82757335,0.00029553,2]
[343455040,1732629033622,-500.0,0.00029553,2]
[343455042,1732629033633,-500.0,0.00029553,2]
[343455044,1732629033643,-500.0,0.00029553,2]
[343455046,1732629033653,-500.0,0.00029553,2]
[343455047,1732629033663,-500.0,0.00029553,2]
[343455048,1732629033675,-499.99999999,0.00029553,2]
[343455049,1732629033684,-500.0,0.00029553,2]
[343455050,1732629033695,-500.0,0.00029553,2]
[343455051,1732629033705,-500.0,0.00029553,2]
[343455052,1732629033714,-39971.68212405,0.00029554,2]
[343455053,1732629033724,-2636.32106194,0.00029556,2]
[343455054,1732629033734,-1298.57919576,0.00029556,2]
[343455055,1732629033744,-500.0,0.0002957,2]
[343455056,1732629033755,-500.94417117,0.00029573,5]
[343455057,1732629033765,-500.0,0.00029573,5]
[343455058,1732629033774,-158.56464448,0.00029573,5]
[343455059,1732629033786,-500.0,0.00029573,5]
[343455060,1732629033796,-500.0,0.00029595,2]
[343455061,1732629033805,-256.2129,0.00029595,2]
[343455062,1732629033815,-222000.0,0.00029596,2]
[343455063,1732629033824,-502.59408877,0.00029649,11]
[343455064,1732629033834,-150.01,0.00029654,2]
[343455065,1732629033843,-12223.41900863,0.00029654,2]
[343455066,1732629033852,-151.0,0.00029655,7]
[343455067,1732629033862,-151.0,0.00029655,7]
[343455068,1732629033872,-151.0,0.00029655,7]
[343455069,1732629033881,-151.0,0.00029655,7]
[343455070,1732629033890,-151.0,0.00029655,7]
[343455071,1732629033901,-151.0,0.00029655,7]
[343455072,1732629033910,-151.0,0.00029655,7]
[343455073,1732629033920,-413.0660056,0.00029656,2]
[343455074,1732629033929,-615.26416634,0.00029656,2]
[343455075,1732629033939,-615.26416634,0.00029656,2]
[343455076,1732629033948,-4870110.75094037,0.00029656,10]
[343455096,1732629040224,-433.81636832,0.00029553,2]
[343455097,1732629040234,-17172.28537527,0.00029656,10]
[343455109,1732629044496,-500.0,0.00029315,2]
[343455110,1732629044506,-500.0,0.00029315,2]
[343455111,1732629044515,-223.29157102,0.00029646,10]
[343455112,1732629044527,-534.67842898,0.00029646,10]
[343455113,1732629044537,-150.01,0.00029654,2]
[343455114,1732629044549,-859.37531548,0.00029654,2]
[343455115,1732629044559,-3644.24321742,0.00029656,10]
[343455118,1732629046194,-34287.33600791,0.00029656,10]
[343455119,1732629046206,-19833.27469826,0.00029656,10]
[343455121,1732629318191,-4531.37873584,0.0003,120]
[343455122,1732629318253,-608.35474716,0.00031507,120]
[343455123,1732629318283,-173.52937102,0.000325,120]
[343455124,1732629318306,-150.0,0.00032863,120]
[343455125,1732629318330,-35.95700475,0.00032876,120]
[343455126,1732629318402,-464.04299525,0.00032876,120]
[343455127,1732629318426,-467.84112293,0.00032876,120]
[343455128,1732629318447,-927.709,0.00033,120]
[343455129,1732629318469,-25068.11588182,0.00033,120]
[343455130,1732629318643,-931.88411818,0.00033,120]
[343455131,1732629318671,-151.0,0.00033534,120]
[343455132,1732629318694,-5667.11479104,0.00035,120]
[343455134,1732629357363,171.100054,0.00013973,2]
[343455234,1732630031108,-235.7522136,0.00023607,2]
[343455235,1732630031141,-200.54070071,0.00023746,4]
[343455236,1732630031164,-250.0,0.00023846,2]
[343455237,1732630031188,-195.42601426,0.00024105,2]
[343455238,1732630031213,-1888.68491159,0.00024154,2]
[343455239,1732630050131,-4760.75689501,0.00024154,2]
[343455240,1732630050157,-300.0,0.00024204,2]
[343455241,1732630050179,-661.49928634,0.00024204,2]
[343455242,1732630085637,169.299906,0.00013973,2]
[343455267,1732630232497,-773.5186232,0.00023828,2]
[343455268,1732630232507,-2161.39166127,0.00023962,2]
[343455269,1732630232516,-4303.394776,0.00023963,2]
[343455270,1732630232527,-250.0,0.00024154,2]
[343455271,1732630232536,-300.0,0.00024203,2]
[343455272,1732630232545,-300.0,0.00024203,2]
[343455273,1732630232555,-5162.0,0.00024203,2]
[343455274,1732630232564,-7301.72593953,0.00024206,2]
[343455275,1732630237447,-401.48180537,0.00024206,2]
[343455276,1732630237460,-183.01819463,0.00024648,2]
[343455277,1732630237472,-3164.46299966,0.00024648,2]
[343455278,1732630237483,-955.91358171,0.00024648,2]
[343455279,1732630237493,-174.99309045,0.00025089,2]
[343455280,1732630237597,-502.61212843,0.00025104,2]
[343455281,1732630237607,-167.834019,0.00025124,2]
[343455282,1732630237615,-593.961772,0.00025156,2]
[343455283,1732630237625,-174.77737253,0.00025156,2]
[343455286,1732630238792,-5658.13422548,0.00025156,2]
[343455287,1732630238803,-19067.08840199,0.00025156,2]
[343455288,1732630238816,-1138.0,0.00025204,2]
[343455289,1732630238827,-241.21684969,0.00025298,7]
[343455290,1732630238836,-4303.394776,0.00025333,2]
[343455291,1732630238845,-502.61212842,0.00025744,2]
[343455292,1732630238854,-506.99377294,0.0002624,2]
[343455293,1732630238863,-500.0,0.0002624,2]
[343455294,1732630238873,-420.0,0.00026241,2]
[343455295,1732630238882,-502.61212842,0.00026385,2]
[343455296,1732630238892,-420.0,0.00026623,2]
[343455297,1732630238902,-500.0,0.00026788,2]
[343455298,1732630238911,-500.0,0.000268,2]
[343455299,1732630238920,-500.53050833,0.000268,2]
[343455300,1732630238929,-500.0,0.000268,2]
[343455301,1732630238939,-500.94072214,0.000268,2]
[343455302,1732630238949,-502.61212842,0.00027025,2]
[343455303,1732630238958,-1347.88914562,0.0002733,2]
[343455304,1732630238967,-245.839,0.0002733,16]
[343455305,1732630238977,-500.0,0.00027348,2]
[343455306,1732630238986,-1000.0,0.00027348,2]
[343455307,1732630238995,-500.0,0.00027397,2]
[343455308,1732630239004,-500.0,0.00027499,2]
[343455309,1732630239013,-183.59505514,0.00027499,2]
[343455310,1732630239022,-500.0,0.00027499,2]
[343455311,1732630239032,-500.0,0.00027499,2]
[343455312,1732630239041,-191.71998203,0.00027499,2]
[343455313,1732630239051,-550.69485387,0.00027499,2]
[343455314,1732630239060,-500.0,0.00027499,2]
[343455315,1732630239073,-500.0,0.00027499,2]
[343455316,1732630239082,-247.73857026,0.00027499,2]
[343455317,1732630239091,-500.0,0.00027499,2]
[343455318,1732630239101,-265.90198402,0.00027499,2]
[343455319,1732630239110,-500.0,0.00027499,2]
[343455320,1732630239119,-152.60671119,0.00027499,2]
[343455321,1732630239129,-500.0,0.00027499,2]
[343455322,1732630239138,-500.0,0.00027499,2]
[343455323,1732630239148,-436.56012968,0.00027499,2]
[343455324,1732630239157,-500.0,0.00027499,2]
[343455325,1732630239166,-500.0,0.00027499,2]
[343455326,1732630239175,-500.0,0.00027499,2]
[343455327,1732630239187,-159.56039175,0.00027499,2]
[343455328,1732630239196,-500.0,0.00027499,2]
[343455329,1732630239206,-500.0,0.00027499,2]
[343455330,1732630239215,-500.0,0.00027499,2]
[343455331,1732630239225,-500.0,0.00027499,2]
[343455332,1732630239234,-500.0,0.00027499,2]
[343455333,1732630239244,-500.0,0.00027499,2]
[343455334,1732630239254,-500.0,0.00027499,2]
[343455335,1732630239263,-500.0,0.00027499,2]
[343455336,1732630239272,-500.0,0.00027499,2]
[343455337,1732630239281,-500.0,0.00027499,2]
[343455338,1732630239292,-500.0,0.00027499,2]
[343455339,1732630239302,-500.0,0.00027499,2]
[343455340,1732630239311,-500.0,0.00027499,2]
[343455341,1732630239324,-500.0,0.00027499,2]
[343455342,1732630239334,-500.0,0.00027499,2]
[343455343,1732630239343,-500.0,0.00027499,2]
[343455344,1732630239353,-500.0,0.00027499,2]
[343455345,1732630239363,-500.0,0.00027499,2]
[343455346,1732630239373,-500.0,0.00027499,2]
[343455347,1732630239382,-500.0,0.00027499,2]
[343455348,1732630239392,-500.0,0.00027499,2]
[343455349,1732630239401,-500.0,0.00027499,2]
[343455350,1732630239411,-500.0,0.00027499,2]
[343455351,1732630239420,-500.0,0.00027499,2]
[343455352,1732630239429,-500.0,0.00027499,2]
[343455353,1732630239439,-336.90423484,0.00027499,2]
[343455354,1732630239450,-500.0,0.00027499,2]
[343455355,1732630239462,-500.0,0.00027499,2]
[343455357,1732630239472,-500.0,0.00027499,2]
[343455358,1732630239482,-500.0,0.00027499,2]
[343455359,1732630239493,-500.0,0.00027499,2]
[343455360,1732630239502,-500.0,0.00027499,2]
[343455361,1732630239512,-500.0,0.00027499,2]
[343455362,1732630239521,-500.0,0.00027499,2]
[343455363,1732630239532,-500.0,0.00027499,2]
[343455364,1732630239541,-500.0,0.00027499,2]
[343455365,1732630239551,-500.0,0.00027499,2]
[343455366,1732630239560,-500.0,0.00027499,2]
[343455367,1732630239572,-500.0,0.00027499,2]
[343455368,1732630239582,-500.0,0.00027499,2]
[343455369,1732630239591,-356.07984966,0.00027499,2]
[343455370,1732630239600,-500.0,0.00027499,2]
[343455371,1732630239609,-500.0,0.00027499,2]
[343455372,1732630239619,-500.0,0.00027499,2]
[343455373,1732630239627,-500.0,0.00027499,2]
[343455374,1732630239637,-500.0,0.00027499,2]
[343455375,1732630239646,-500.0,0.00027499,2]
[343455376,1732630239655,-500.0,0.00027499,2]
[343455377,1732630239664,-500.0,0.00027499,2]
[343455378,1732630239673,-500.0,0.00027499,2]
[343455379,1732630239682,-500.0,0.00027499,2]
[343455380,1732630239691,-500.0,0.00027499,2]
[343455381,1732630239701,-500.0,0.00027499,2]
[343455382,1732630239711,-500.0,0.00027499,2]
[343455383,1732630239720,-500.0,0.00027499,2]
[343455384,1732630239729,-500.0,0.00027499,2]
[343455385,1732630239739,-500.0,0.00027499,2]
[343455386,1732630239748,-427.69584791,0.00027499,2]
[343455388,1732630239758,-500.0,0.00027499,2]
[343455389,1732630239767,-500.0,0.00027499,2]
[343455390,1732630239776,-500.0,0.00027499,2]
[343455391,1732630239786,-500.0,0.00027499,2]
[343455392,1732630239795,-500.0,0.00027499,2]
[343455393,1732630239804,-500.0,0.00027499,2]
[343455394,1732630239816,-500.0,0.00027499,2]
[343455395,1732630239826,-500.0,0.00027499,2]
[343455396,1732630239835,-500.0,0.00027499,2]
[343455397,1732630239845,-500.0,0.00027499,2]
[343455398,1732630239854,-500.0,0.00027499,2]
[343455399,1732630239863,-500.0,0.00027499,2]
[343455400,1732630239872,-500.0,0.00027499,2]
[343455401,1732630239881,-500.0,0.00027499,2]
[343455402,1732630239891,-500.0,0.00027499,2]
[343455403,1732630239900,-235.18062448,0.00027499,2]
[343455404,1732630239909,-300.0,0.00027499,2]
[343455405,1732630239918,-500.0,0.00027499,2]
[343455408,1732630239927,-425.01212881,0.00027499,2]
[343455414,1732630240714,-1057.42,0.0002749,10]
[343455415,1732630240725,-74.98787119,0.00027499,2]
[343455416,1732630240736,-11689.66436082,0.000275,5]
[343455417,1732630240748,-30656.10842527,0.000275,5]
[343455426,1732630244991,-72124.8654,0.000275,5]
[343455427,1732630245002,-9439.80958559,0.000275,5]
[343455438,1732630246753,-184.93,0.0002749,3]
[343455439,1732630246763,-109519.35222832,0.000275,5]
[343455440,1732630246773,-1807.624756,0.000275,2]
[343455441,1732630246782,-502.61212842,0.00027665,2]
[343455442,1732630246791,-502.61212842,0.00028305,2]
[343455443,1732630246800,-1500.0,0.0002835,5]
[343455444,1732630246809,-587.0,0.00028451,2]
[343455445,1732630246818,-500.0,0.00028767,4]
[343455446,1732630246832,-369.86,0.0002886,3]
[343455447,1732630246841,-502.61212842,0.00028946,2]
[343455448,1732630246850,-150.0,0.00029075,2]
[343455449,1732630246859,-250.08,0.00029075,2]
[343455450,1732630246868,-150.0,0.00029075,2]
[343455451,1732630246877,-531.0,0.00029075,2]
[343455452,1732630246886,-2378.0,0.00029075,2]
[343455453,1732630246895,-701.123,0.00029075,2]
[343455454,1732630246906,-587.0,0.00029286,2]
[343455455,1732630246915,-248.06096089,0.00029315,2]
[343455456,1732630246924,-354.00628292,0.00029315,2]
[343455457,1732630246933,-500.0,0.00029315,2]
[343455458,1732630246942,-500.0,0.00029315,2]
[343455459,1732630246951,-500.0,0.00029315,2]
[343455460,1732630246960,-500.0,0.00029315,2]
[343455461,1732630246969,-500.0,0.00029315,2]
[343455462,1732630246978,-500.43933508,0.00029315,2]
[343455463,1732630246987,-369.85619984,0.00029315,2]
[343455464,1732630246997,-500.0,0.00029315,2]
[343455465,1732630247006,-500.0,0.00029315,2]
[343455466,1732630247014,-500.0,0.00029315,2]
[343455467,1732630247023,-295.23101078,0.00029315,2]
[343455468,1732630247032,-235.7522136,0.00029315,2]
[343455469,1732630247041,-500.0,0.00029315,2]
[343455470,1732630247050,-500.0,0.00029315,2]
[343455471,1732630247059,-500.0,0.00029315,2]
[343455472,1732630247068,-500.0,0.00029315,2]
[343455473,1732630247081,-500.0,0.00029315,2]
[343455474,1732630247089,-500.0,0.00029315,2]
[343455475,1732630247098,-500.0,0.00029315,2]
[343455476,1732630247107,-617.4,0.00029315,2]
[343455477,1732630247116,-500.0,0.00029315,2]
[343455478,1732630247125,-500.0,0.00029315,2]
[343455479,1732630247134,-500.0,0.00029315,2]
[343455480,1732630247144,-404.28346504,0.00029315,2]
[343455481,1732630247154,-639.76753969,0.00029315,2]
[343455482,1732630247163,-500.0,0.00029315,2]
[343455483,1732630247172,-475.54,0.00029315,2]
[343455484,1732630247181,-500.0,0.00029315,2]
[343455485,1732630247191,-500.0,0.00029315,2]
[343455486,1732630247200,-500.0,0.00029315,2]
[343455487,1732630247209,-387.6660873,0.00029315,2]
[343455488,1732630247218,-500.0,0.00029315,2]
[343455489,1732630247227,-500.0,0.00029315,2]
[343455490,1732630247237,-504.62061422,0.00029315,2]
[343455491,1732630247246,-500.0,0.00029315,2]
[343455492,1732630247255,-500.0,0.00029315,2]
[343455493,1732630247265,-500.0,0.00029315,2]
[343455494,1732630247274,-501.72703278,0.00029315,2]
[343455495,1732630247284,-500.0,0.00029315,2]
[343455496,1732630247294,-500.0,0.00029315,2]
[343455497,1732630247303,-500.0,0.00029315,2]
[343455498,1732630247313,-498.25265623,0.00029315,2]
[343455499,1732630247323,-338.27002018,0.00029315,2]
[343455500,1732630247333,-500.0,0.00029315,2]
[343455501,1732630247424,-522.48803552,0.00029315,2]
[343455502,1732630247433,-500.0,0.00029315,2]
[343455503,1732630247443,-500.0,0.00029315,2]
[343455504,1732630247455,-500.0,0.00029315,2]
[343455505,1732630247467,-500.0,0.00029315,2]
[343455506,1732630247476,-500.0,0.00029315,2]
[343455507,1732630247485,-503.51319913,0.00029315,2]
[343455508,1732630247494,-500.53882638,0.00029315,2]
[343455509,1732630247504,-492.27,0.00029315,2]
[343455510,1732630247513,-500.0,0.00029315,2]
[343455511,1732630247522,-645.79,0.00029315,2]
[343455512,1732630247531,-500.0,0.00029315,2]
[343455513,1732630247540,-590.66,0.00029315,2]
[343455514,1732630247549,-500.0,0.00029315,2]
[343455515,1732630247558,-500.0,0.00029315,2]
[343455516,1732630247568,-500.0,0.00029315,2]
[343455517,1732630247580,-261.58,0.00029315,2]
[343455518,1732630247592,-500.0,0.00029315,2]
[343455519,1732630247601,-500.0,0.00029315,2]
[343455520,1732630247610,-500.0,0.00029315,2]
[343455521,1732630247620,-500.0,0.00029315,2]
[343455522,1732630247629,-500.0,0.00029315,2]
[343455523,1732630247639,-500.0,0.00029315,2]
[343455524,1732630247647,-500.0,0.00029315,2]
[343455525,1732630247657,-500.70702015,0.00029315,2]
[343455526,1732630247666,-500.77716814,0.00029315,2]
[343455527,1732630247675,-500.0,0.00029315,2]
[343455528,1732630247684,-500.0,0.00029315,2]
[343455529,1732630247694,-500.0,0.00029315,2]
[343455530,1732630247703,-500.0,0.00029315,2]
[343455531,1732630247713,-500.0,0.00029315,2]
[343455532,1732630247723,-500.0,0.00029315,2]
[343455533,1732630247732,-500.0,0.00029315,2]
[343455534,1732630247742,-500.0,0.00029315,2]
[343455535,1732630247751,-619.46748393,0.00029315,2]
[343455536,1732630247761,-500.0,0.00029315,2]
[343455537,1732630247770,-500.0,0.00029315,2]
[343455538,1732630247779,-609.70096909,0.00029315,2]
[343455539,1732630247788,-500.0,0.00029315,2]
[343455540,1732630247797,-500.0,0.00029315,2]
[343455541,1732630247806,-500.0,0.00029315,2]
[343455542,1732630247816,-500.0,0.00029315,2]
[343455543,1732630247829,-500.0,0.00029315,2]
[343455544,1732630247838,-500.0,0.00029315,2]
[343455545,1732630247848,-500.0,0.00029315,2]
[343455546,1732630247857,-500.0,0.00029315,2]
[343455547,1732630247867,-485.4,0.00029315,2]
[343455548,1732630247876,-500.0,0.00029315,2]
[343455549,1732630247885,-500.0,0.00029315,2]
[343455550,1732630247895,-500.0,0.00029315,2]
[343455551,1732630247905,-500.0,0.00029315,2]
[343455552,1732630247914,-500.0,0.00029315,2]
[343455553,1732630247923,-500.0,0.00029315,2]
[343455554,1732630247932,-500.0,0.00029315,2]
[343455555,1732630247941,-246.4,0.00029315,2]
[343455556,1732630247951,-500.0,0.00029315,2]
[343455557,1732630247959,-500.0,0.00029315,2]
[343455558,1732630247968,-500.0,0.00029315,2]
[343455559,1732630247978,-500.0,0.00029315,2]
[343455560,1732630247987,-500.0,0.00029315,2]
[343455561,1732630247996,-500.0,0.00029315,2]
[343455562,1732630248006,-500.0,0.00029315,2]
[343455563,1732630248015,-410.69,0.00029315,2]
[343455564,1732630248024,-500.0,0.00029315,2]
[343455565,1732630248033,-500.0,0.00029315,2]
[343455566,1732630248042,-500.0,0.00029315,2]
[343455567,1732630248051,-500.0,0.00029315,2]
[343455568,1732630248061,-500.0,0.00029315,2]
[343455569,1732630248070,-500.0,0.00029315,2]
[343455570,1732630248081,-500.0,0.00029315,2]
[343455571,1732630248090,-500.0,0.00029315,2]
[343455572,1732630248099,-500.0,0.00029315,2]
[343455573,1732630248108,-500.0,0.00029315,2]
[343455574,1732630248118,-500.0,0.00029315,2]
[343455575,1732630248127,-500.0,0.00029315,2]
[343455576,1732630248136,-557.71469773,0.00029315,2]
[343455577,1732630248145,-246.65,0.00029315,2]
[343455578,1732630248154,-500.0,0.00029315,2]
[343455579,1732630248163,-692.85,0.00029315,2]
[343455580,1732630248172,-692.85,0.00029315,2]
[343455581,1732630248182,-692.85,0.00029315,2]
[343455582,1732630248192,-692.85,0.00029315,2]
[343455583,1732630248202,-692.85,0.00029315,2]
[343455584,1732630248211,-692.85,0.00029315,2]
[343455585,1732630248220,-692.85,0.00029315,2]
[343455586,1732630248229,-692.85,0.00029315,2]
[343455587,1732630248239,-692.85,0.00029315,2]
[343455588,1732630248248,-692.85,0.00029315,2]
[343455589,1732630248257,-692.85,0.00029315,2]
[343455590,1732630248266,-500.0,0.00029315,2]